[Event "*** Qualifier 2: Titled Tuesday 3|2 Blitz"]
[Site "Chess.com"]
[Date "2017.04.11"]
[Round "7"]
[White "jcibarra"]
[Black "JoachimBN"]
[Result "1-0"]
[WhiteElo "2662"]
[BlackElo "2559"]
[TimeControl "180+2"]
[EndTime "14:40:27 PDT"]
[Termination "jcibarra won by resignation"]

1. e4 {[%clk 0:03:02]} 1... e5 {[%clk 0:02:58.2]} 2. Nf3 {[%clk 0:03:03.1]} 2...
Nf6 {[%clk 0:02:59.1]} 3. Nc3 {[%clk 0:03:03.8]} 3... Nc6 {[%clk 0:02:59.9]} 4.
d4 {[%clk 0:03:04.9]} 4... exd4 {[%clk 0:03:00]} 5. Nxd4 {[%clk 0:03:06.8]} 5...
Bb4 {[%clk 0:03:01.5]} 6. Nxc6 {[%clk 0:03:08.3]} 6... bxc6 {[%clk 0:03:03.4]}
7. Bd3 {[%clk 0:03:09.6]} 7... O-O {[%clk 0:03:04.3]} 8. O-O {[%clk 0:03:10.3]}
8... d5 {[%clk 0:03:05.3]} 9. exd5 {[%clk 0:03:11.7]} 9... cxd5 {[%clk
0:03:05.7]} 10. h3 {[%clk 0:03:13.3]} 10... c6 {[%clk 0:02:53.9]} 11. Qf3 {[%clk
0:03:14.1]} 11... Rb8 {[%clk 0:02:44.1]} 12. Bf4 {[%clk 0:03:14.2]} 12... Bd6
{[%clk 0:02:45.6]} 13. b3 {[%clk 0:03:15.6]} 13... Qc7 {[%clk 0:02:43.2]} 14.
Bxd6 {[%clk 0:03:12.1]} 14... Qxd6 {[%clk 0:02:43.1]} 15. Qg3 {[%clk 0:03:14]}
15... Qxg3 {[%clk 0:02:39.4]} 16. fxg3 {[%clk 0:03:15.9]} 16... Re8 {[%clk
0:02:41]} 17. Rae1 {[%clk 0:03:14.6]} 17... Be6 {[%clk 0:02:35]} 18. Na4 {[%clk
0:03:12]} 18... Nd7 {[%clk 0:02:35.9]} 19. g4 {[%clk 0:03:12]} 19... h6 {[%clk
0:02:31]} 20. c3 {[%clk 0:03:06.5]} 20... c5 {[%clk 0:02:26.3]} 21. Bf5 {[%clk
0:03:06.3]} 21... c4 {[%clk 0:02:12.4]} 22. bxc4 {[%clk 0:02:58.8]} 22... dxc4
{[%clk 0:02:12.3]} 23. Bxe6 {[%clk 0:03:00.1]} 23... Rxe6 {[%clk 0:02:11.7]} 24.
Rxe6 {[%clk 0:03:01]} 24... fxe6 {[%clk 0:02:13.6]} 25. Rf4 {[%clk 0:03:01.3]}
25... Rc8 {[%clk 0:02:06.2]} 26. Rd4 {[%clk 0:03:01.1]} 26... Nf6 {[%clk
0:02:01.4]} 27. Rd6 {[%clk 0:02:50.2]} 27... Kf7 {[%clk 0:02:01.3]} 28. Ra6
{[%clk 0:02:47]} 28... Rc7 {[%clk 0:02:02.2]} 29. Kf2 {[%clk 0:02:48.1]} 29...
Nd5 {[%clk 0:01:57.3]} 30. Kf3 {[%clk 0:02:49.3]} 30... Ke7 {[%clk 0:01:47.3]}
31. Ke4 {[%clk 0:02:48.4]} 31... Nf6+ {[%clk 0:01:38]} 32. Kd4 {[%clk
0:02:49.3]} 32... Nd7 {[%clk 0:01:39.7]} 33. Nb2 {[%clk 0:02:43]} 33... Nb6
{[%clk 0:01:36.7]} 34. a4 {[%clk 0:02:39.2]} 34... Rd7+ {[%clk 0:01:31.6]} 35.
Kc5 {[%clk 0:02:35.5]} 35... Rc7+ {[%clk 0:01:29.1]} 36. Kb5 {[%clk 0:02:31.8]}
36... Nd5 {[%clk 0:01:23]} 37. Nd1 {[%clk 0:02:30.9]} 37... Kd7 {[%clk
0:01:20.7]} 38. g3 {[%clk 0:02:18.6]} 38... Ke7 {[%clk 0:01:07.2]} 39. h4 {[%clk
0:02:19]} 39... Kd7 {[%clk 0:01:08.1]} 40. g5 {[%clk 0:02:18.5]} 40... h5 {[%clk
0:01:06.3]} 41. g6 {[%clk 0:02:17.3]} 41... Ke7 {[%clk 0:00:54.6]} 42. Rc6
{[%clk 0:02:16.9]} 42... Rd7 {[%clk 0:00:40.1]} 43. a5 {[%clk 0:02:08.9]} 43...
Kf6 {[%clk 0:00:31.1]} 44. Rxc4 {[%clk 0:02:04.2]} 44... Ne7 {[%clk 0:00:32.3]}
45. Nf2 {[%clk 0:01:58.7]} 45... Nxg6 {[%clk 0:00:29.5]} 46. Rc5 {[%clk
0:01:55.5]} 46... Ne5 {[%clk 0:00:22.8]} 47. Ne4+ {[%clk 0:01:50.7]} 47... Kf5
{[%clk 0:00:24]} 48. Ng5 {[%clk 0:01:51.7]} 48... Rd5 {[%clk 0:00:22.2]} 49.
Rxd5 {[%clk 0:01:41.9]} 49... exd5 {[%clk 0:00:24.1]} 50. Kc5 {[%clk 0:01:43.4]}
50... Kg4 {[%clk 0:00:25.6]} 51. Kxd5 {[%clk 0:01:43.3]} 51... Ng6 {[%clk
0:00:26]} 52. Ne6 {[%clk 0:01:37.7]} 52... Kxg3 {[%clk 0:00:22.5]} 53. Nxg7
{[%clk 0:01:38.7]} 53... Kxh4 {[%clk 0:00:20.6]} 54. Kc6 {[%clk 0:01:39.7]}
54... Kg4 {[%clk 0:00:16.3]} 55. Nxh5 {[%clk 0:01:40.4]} 55... Kxh5 {[%clk
0:00:18.2]} 56. Kb7 {[%clk 0:01:42]} 56... Ne5 {[%clk 0:00:18.6]} 57. Kxa7
{[%clk 0:01:43.4]} 57... Kg6 {[%clk 0:00:18]} 58. a6 {[%clk 0:01:44.3]} 58...
Kf6 {[%clk 0:00:19]} 59. Kb7 {[%clk 0:01:45.1]} 59... Nc4 {[%clk 0:00:18.3]} 60.
a7 {[%clk 0:01:45.4]} 60... Nd6+ {[%clk 0:00:19.6]} 61. Kb8 {[%clk 0:01:46.2]}
1-0

[Event "*** Qualifier 2: Titled Tuesday 3|2 Blitz"]
[Site "Chess.com"]
[Date "2017.04.11"]
[Round "7"]
[White "iturrizaga"]
[Black "rst2003"]
[Result "1-0"]
[WhiteElo "2638"]
[BlackElo "2128"]
[TimeControl "180+2"]
[EndTime "14:40:40 PDT"]
[Termination "iturrizaga won by checkmate"]

1. Nf3 {[%clk 0:03:02]} 1... Nf6 {[%clk 0:03:00]} 2. c4 {[%clk 0:03:03.9]} 2...
g6 {[%clk 0:03:01.2]} 3. g3 {[%clk 0:03:05.8]} 3... Bg7 {[%clk 0:03:02.3]} 4.
Bg2 {[%clk 0:03:07.7]} 4... O-O {[%clk 0:03:03.4]} 5. O-O {[%clk 0:03:09.6]}
5... d6 {[%clk 0:03:05]} 6. Nc3 {[%clk 0:03:11]} 6... e5 {[%clk 0:03:04.9]} 7.
d4 {[%clk 0:03:12.9]} 7... Nbd7 {[%clk 0:03:05.7]} 8. e4 {[%clk 0:03:12.6]} 8...
c6 {[%clk 0:02:57.9]} 9. h3 {[%clk 0:03:13.6]} 9... Qc7 {[%clk 0:02:43.5]} 10.
b3 {[%clk 0:03:13.7]} 10... a6 {[%clk 0:02:34]} 11. Ba3 {[%clk 0:03:14.7]} 11...
Rd8 {[%clk 0:02:26.6]} 12. Qd2 {[%clk 0:03:11.9]} 12... Nf8 {[%clk 0:02:17.4]}
13. Rfd1 {[%clk 0:03:09.7]} 13... Be6 {[%clk 0:02:18.3]} 14. Rac1 {[%clk
0:03:06]} 14... Qa5 {[%clk 0:02:06.9]} 15. Qb2 {[%clk 0:02:56.1]} 15... b5
{[%clk 0:01:57.3]} 16. dxe5 {[%clk 0:02:47]} 16... dxe5 {[%clk 0:01:55.1]} 17.
Be7 {[%clk 0:02:18.1]} 17... Rxd1+ {[%clk 0:01:45.3]} 18. Rxd1 {[%clk 0:02:20]}
18... b4 {[%clk 0:01:46.5]} 19. Na4 {[%clk 0:02:15.2]} 19... Nxe4 {[%clk
0:01:44.7]} 20. Qe2 {[%clk 0:02:10.8]} 20... Nc3 {[%clk 0:01:36.8]} 21. Nxc3
{[%clk 0:02:11.7]} 21... bxc3 {[%clk 0:01:38.3]} 22. Ng5 {[%clk 0:02:10.8]}
22... Bf5 {[%clk 0:01:12.1]} 23. g4 {[%clk 0:02:10.8]} 23... c2 {[%clk
0:01:06.8]} 24. Rc1 {[%clk 0:02:08.2]} 24... Re8 {[%clk 0:00:24.2]} 25. Bxf8
{[%clk 0:02:01.4]} 25... Bxf8 {[%clk 0:00:25.4]} 26. gxf5 {[%clk 0:02:02.6]}
26... Bh6 {[%clk 0:00:26.7]} 27. h4 {[%clk 0:02:03.1]} 27... f6 {[%clk
0:00:27.3]} 28. Bxc6 {[%clk 0:02:01.1]} 28... Re7 {[%clk 0:00:26.7]} 29. Bd5+
{[%clk 0:02:01.8]} 29... Kg7 {[%clk 0:00:27.5]} 30. Ne6+ {[%clk 0:01:25.5]}
30... Rxe6 {[%clk 0:00:28]} 31. fxe6 {[%clk 0:01:24.1]} 31... Bxc1 {[%clk
0:00:28.5]} 32. e7 {[%clk 0:01:25.2]} 32... Bd2 {[%clk 0:00:24.5]} 33. e8=Q
{[%clk 0:01:26.3]} 33... c1=Q+ {[%clk 0:00:25]} 34. Kg2 {[%clk 0:01:26.7]} 34...
Qc7 {[%clk 0:00:23.8]} 35. Qg4 {[%clk 0:01:10.3]} 35... Bf4 {[%clk 0:00:18.6]}
36. Qge6 {[%clk 0:00:55.8]} 36... Qd2 {[%clk 0:00:14.4]} 37. Qh8+ {[%clk
0:00:28]} 37... Kh6 {[%clk 0:00:13.3]} 38. Qexf6 {[%clk 0:00:26.4]} 38... Be3
{[%clk 0:00:11.7]} 39. Qhf8+ {[%clk 0:00:23.9]} 39... Kh5 {[%clk 0:00:11.6]} 40.
Bf3# {[%clk 0:00:24.6]} 1-0

[Event "*** Qualifier 2: Titled Tuesday 3|2 Blitz"]
[Site "Chess.com"]
[Date "2017.04.11"]
[Round "7"]
[White "stepanosinovsky"]
[Black "biostatistician"]
[Result "0-1"]
[WhiteElo "2226"]
[BlackElo "2436"]
[TimeControl "180+2"]
[EndTime "14:40:59 PDT"]
[Termination "biostatistician won by resignation"]

1. e4 {[%clk 0:03:02]} 1... e6 {[%clk 0:03:00.4]} 2. d3 {[%clk 0:03:02.1]} 2...
d5 {[%clk 0:03:02.3]} 3. Nd2 {[%clk 0:03:03.9]} 3... Nf6 {[%clk 0:03:03.3]} 4.
Ngf3 {[%clk 0:03:04.1]} 4... Nc6 {[%clk 0:03:04.7]} 5. g3 {[%clk 0:03:03.9]}
5... Bc5 {[%clk 0:03:03.7]} 6. Bg2 {[%clk 0:03:03.8]} 6... O-O {[%clk 0:03:04]}
7. O-O {[%clk 0:03:04]} 7... dxe4 {[%clk 0:03:04.7]} 8. dxe4 {[%clk 0:03:04]}
8... e5 {[%clk 0:03:06.3]} 9. c3 {[%clk 0:03:03.2]} 9... a5 {[%clk 0:03:06.4]}
10. Qc2 {[%clk 0:02:49.6]} 10... b6 {[%clk 0:03:05.9]} 11. Nc4 {[%clk
0:02:49.7]} 11... Ba6 {[%clk 0:03:04.4]} 12. Rd1 {[%clk 0:02:49.4]} 12... Qe7
{[%clk 0:03:04.5]} 13. Ne3 {[%clk 0:02:49.7]} 13... Bxe3 {[%clk 0:03:03.5]} 14.
Bxe3 {[%clk 0:02:50]} 14... Rfd8 {[%clk 0:03:02.9]} 15. Nh4 {[%clk 0:02:44.9]}
15... g6 {[%clk 0:02:57.8]} 16. Bg5 {[%clk 0:02:43.9]} 16... Kg7 {[%clk
0:02:52.2]} 17. Rxd8 {[%clk 0:01:44.8]} 17... Rxd8 {[%clk 0:02:52]} 18. Rd1
{[%clk 0:01:45.7]} 18... h6 {[%clk 0:02:48.3]} 19. Bc1 {[%clk 0:01:46.4]} 19...
Rxd1+ {[%clk 0:02:28.2]} 20. Qxd1 {[%clk 0:01:48.3]} 20... Qd7 {[%clk
0:02:29.5]} 21. Qxd7 {[%clk 0:01:25.2]} 21... Nxd7 {[%clk 0:02:31.4]} 22. Nf3
{[%clk 0:01:25]} 22... Bc4 {[%clk 0:02:26.7]} 23. b3 {[%clk 0:01:24.3]} 23...
Bd3 {[%clk 0:02:27.8]} 24. Nd2 {[%clk 0:01:21.6]} 24... h5 {[%clk 0:02:20.6]}
25. f3 {[%clk 0:01:22.3]} 25... f5 {[%clk 0:02:19.4]} 26. Kf2 {[%clk 0:01:20.3]}
26... Kf6 {[%clk 0:02:19.1]} 27. exf5 {[%clk 0:01:17.7]} 27... gxf5 {[%clk
0:02:19.1]} 28. Ke3 {[%clk 0:01:17.1]} 28... Bc2 {[%clk 0:02:19.8]} 29. f4
{[%clk 0:01:09.7]} 29... e4 {[%clk 0:02:20.7]} 30. Bf1 {[%clk 0:01:07.2]} 30...
Nc5 {[%clk 0:02:04.6]} 31. Be2 {[%clk 0:00:54.5]} 31... Kg6 {[%clk 0:02:01.4]}
32. Ba3 {[%clk 0:00:53]} 32... Nd3 {[%clk 0:01:58.2]} 33. h3 {[%clk 0:00:41.8]}
33... Na7 {[%clk 0:01:46.3]} 34. c4 {[%clk 0:00:38.3]} 34... Nc6 {[%clk
0:01:32.3]} 35. g4 {[%clk 0:00:22.5]} 35... hxg4 {[%clk 0:01:34.2]} 36. hxg4
{[%clk 0:00:23.4]} 36... Ndb4 {[%clk 0:01:35.7]} 37. gxf5+ {[%clk 0:00:20.6]}
37... Kxf5 {[%clk 0:01:34.1]} 38. Bf1 {[%clk 0:00:21.8]} 38... Nxa2 {[%clk
0:01:30.4]} 39. Bh3+ {[%clk 0:00:22.3]} 39... Kf6 {[%clk 0:01:30.7]} 40. Bb2+
{[%clk 0:00:21.1]} 40... Ke7 {[%clk 0:01:29.9]} 41. f5 {[%clk 0:00:20.4]} 41...
Nab4 {[%clk 0:01:20.6]} 42. f6+ {[%clk 0:00:17.4]} 42... Kf7 {[%clk 0:01:21.6]}
43. Bd7 {[%clk 0:00:16.6]} 43... Nb8 {[%clk 0:01:14.6]} 44. Bf5 {[%clk
0:00:15.4]} 44... N8a6 {[%clk 0:00:57.1]} 45. Nxe4 {[%clk 0:00:13.9]} 45... Bxe4
{[%clk 0:00:46.8]} 46. Kxe4 {[%clk 0:00:09.6]} 46... Nc5+ {[%clk 0:00:48.7]} 47.
Kf4 {[%clk 0:00:10.4]} 47... Nbd3+ {[%clk 0:00:48.1]} 0-1

[Event "*** Qualifier 2: Titled Tuesday 3|2 Blitz"]
[Site "Chess.com"]
[Date "2017.04.11"]
[Round "7"]
[White "Cayse"]
[Black "Noukii"]
[Result "1-0"]
[WhiteElo "2614"]
[BlackElo "2622"]
[TimeControl "180+2"]
[EndTime "14:41:10 PDT"]
[Termination "Cayse won by resignation"]

1. e4 {[%clk 0:03:02]} 1... e5 {[%clk 0:02:55.5]} 2. Nf3 {[%clk 0:03:02.4]} 2...
Nc6 {[%clk 0:02:56.6]} 3. Bc4 {[%clk 0:03:03.2]} 3... Nf6 {[%clk 0:02:57.4]} 4.
Ng5 {[%clk 0:03:03.4]} 4... d5 {[%clk 0:02:57.7]} 5. exd5 {[%clk 0:03:04.4]}
5... Na5 {[%clk 0:02:59.3]} 6. Bb5+ {[%clk 0:03:05.5]} 6... Bd7 {[%clk
0:03:00.6]} 7. Qe2 {[%clk 0:03:02.8]} 7... Be7 {[%clk 0:03:00.7]} 8. Nc3 {[%clk
0:02:59.9]} 8... O-O {[%clk 0:02:59]} 9. Bxd7 {[%clk 0:02:57.6]} 9... Qxd7
{[%clk 0:02:57.6]} 10. Nf3 {[%clk 0:02:59.1]} 10... e4 {[%clk 0:02:55.9]} 11.
Nxe4 {[%clk 0:02:58.1]} 11... Nxd5 {[%clk 0:02:54.6]} 12. d3 {[%clk 0:02:57.9]}
12... f5 {[%clk 0:02:38.4]} 13. Ne5 {[%clk 0:02:31.4]} 13... Qe6 {[%clk
0:02:29.5]} 14. Nc3 {[%clk 0:02:28.2]} 14... Nxc3 {[%clk 0:02:00.8]} 15. bxc3
{[%clk 0:02:28.7]} 15... Bf6 {[%clk 0:02:00.3]} 16. d4 {[%clk 0:02:27.6]} 16...
Rfe8 {[%clk 0:01:30]} 17. f4 {[%clk 0:02:27.5]} 17... c5 {[%clk 0:01:07]} 18.
O-O {[%clk 0:02:26.6]} 18... Rac8 {[%clk 0:01:05.5]} 19. Be3 {[%clk 0:02:24.2]}
19... b6 {[%clk 0:00:59.7]} 20. Qd3 {[%clk 0:02:16.5]} 20... g6 {[%clk
0:01:00.8]} 21. Rfe1 {[%clk 0:02:12.6]} 21... cxd4 {[%clk 0:00:56.8]} 22. cxd4
{[%clk 0:02:10.5]} 22... Qd5 {[%clk 0:00:58.1]} 23. Bf2 {[%clk 0:02:08.8]} 23...
Re7 {[%clk 0:00:55.4]} 24. Re2 {[%clk 0:02:06.7]} 24... Rec7 {[%clk 0:00:56.1]}
25. Be1 {[%clk 0:01:54.3]} 25... Nc4 {[%clk 0:00:52.3]} 26. a4 {[%clk
0:01:52.7]} 26... Nd6 {[%clk 0:00:50.5]} 27. Bb4 {[%clk 0:01:49.1]} 27... Ne4
{[%clk 0:00:51.3]} 28. c4 {[%clk 0:01:49.6]} 28... Rxc4 {[%clk 0:00:52.6]} 29.
Nxc4 {[%clk 0:01:23]} 29... Qxd4+ {[%clk 0:00:52.5]} 30. Qxd4 {[%clk 0:01:23.4]}
30... Bxd4+ {[%clk 0:00:54.4]} 31. Kf1 {[%clk 0:01:24.6]} 31... Bxa1 {[%clk
0:00:55]} 32. Ne3 {[%clk 0:01:20.5]} 32... a5 {[%clk 0:00:45.3]} 33. Be1 {[%clk
0:01:20.3]} 33... Rc1 {[%clk 0:00:39.5]} 34. Rc2 {[%clk 0:01:20]} 34... Rb1
{[%clk 0:00:33.5]} 35. Ke2 {[%clk 0:01:20]} 35... Bd4 {[%clk 0:00:34.5]} 36. Nd5
{[%clk 0:01:17.9]} 36... Bc5 {[%clk 0:00:33]} 37. Bc3 {[%clk 0:01:01.6]} 37...
Kf7 {[%clk 0:00:33]} 38. Be5 {[%clk 0:01:01.5]} 38... Ke6 {[%clk 0:00:33.7]} 39.
Nc7+ {[%clk 0:01:01.8]} 39... Kd7 {[%clk 0:00:34.8]} 40. Nd5 {[%clk 0:01:00.9]}
40... Rg1 {[%clk 0:00:32]} 41. Kd3 {[%clk 0:01:00.5]} 41... Rd1+ {[%clk
0:00:24.8]} 42. Kc4 {[%clk 0:01:00.8]} 42... Kc6 {[%clk 0:00:22.5]} 43. Nc3
{[%clk 0:00:56.8]} 43... Nxc3 {[%clk 0:00:17.4]} 44. Bxc3 {[%clk 0:00:58.1]}
44... Rf1 {[%clk 0:00:18.2]} 45. g3 {[%clk 0:00:57.8]} 45... Rf2 {[%clk
0:00:18.6]} 46. Rc1 {[%clk 0:00:58]} 46... Rxh2 {[%clk 0:00:19.4]} 47. Re1
{[%clk 0:00:59.5]} 47... Rg2 {[%clk 0:00:19.6]} 48. Re6+ {[%clk 0:01:00]} 48...
Kd7 {[%clk 0:00:20.4]} 49. Rf6 {[%clk 0:00:59]} 49... Ke7 {[%clk 0:00:20]} 50.
Rc6 {[%clk 0:00:58.3]} 50... Rxg3 {[%clk 0:00:18.6]} 51. Be5 {[%clk 0:00:59.1]}
51... Ra3 {[%clk 0:00:17.2]} 52. Rc7+ {[%clk 0:00:59.2]} 52... Ke6 {[%clk
0:00:18.2]} 53. Rc6+ {[%clk 0:01:00.5]} 53... Kd7 {[%clk 0:00:19.7]} 54. Rc7+
{[%clk 0:01:01.8]} 54... Kd8 {[%clk 0:00:21.3]} 55. Kd5 {[%clk 0:01:02.5]} 55...
Rd3+ {[%clk 0:00:14]} 56. Ke6 {[%clk 0:01:01]} 56... h5 {[%clk 0:00:12.4]} 57.
Rb7 {[%clk 0:01:01.7]} 57... Ke8 {[%clk 0:00:12.9]} 58. Bc7 {[%clk 0:00:57.3]}
58... Kf8 {[%clk 0:00:11.5]} 59. Rb8+ {[%clk 0:00:55.5]} 59... Kg7 {[%clk
0:00:11.9]} 60. Be5+ {[%clk 0:00:56.8]} 1-0

[Event "*** Qualifier 2: Titled Tuesday 3|2 Blitz"]
[Site "Chess.com"]
[Date "2017.04.11"]
[Round "7"]
[White "EvgenyT"]
[Black "GMHess"]
[Result "1-0"]
[WhiteElo "2587"]
[BlackElo "2621"]
[TimeControl "180+2"]
[EndTime "14:41:19 PDT"]
[Termination "EvgenyT won by checkmate"]

1. Nf3 {[%clk 0:03:00.6]} 1... Nf6 {[%clk 0:03:00.5]} 2. c4 {[%clk 0:03:01.6]}
2... e6 {[%clk 0:03:01.4]} 3. g3 {[%clk 0:03:01.4]} 3... d5 {[%clk 0:03:02]} 4.
Bg2 {[%clk 0:03:03]} 4... Be7 {[%clk 0:03:01.7]} 5. O-O {[%clk 0:03:03.8]} 5...
dxc4 {[%clk 0:02:56.9]} 6. Qc2 {[%clk 0:02:44.4]} 6... O-O {[%clk 0:02:53.7]} 7.
Qxc4 {[%clk 0:02:33.4]} 7... a6 {[%clk 0:02:50.4]} 8. Qc2 {[%clk 0:02:20.5]}
8... c5 {[%clk 0:02:38.4]} 9. Ne5 {[%clk 0:02:20]} 9... Nbd7 {[%clk 0:02:35.3]}
10. Nxd7 {[%clk 0:02:16.8]} 10... Qxd7 {[%clk 0:02:36.2]} 11. a4 {[%clk
0:02:16.9]} 11... Rd8 {[%clk 0:02:12.7]} 12. a5 {[%clk 0:02:16.7]} 12... Qc7
{[%clk 0:02:08.3]} 13. d3 {[%clk 0:02:16.1]} 13... Nd5 {[%clk 0:01:59.2]} 14.
Nd2 {[%clk 0:02:15.8]} 14... Nb4 {[%clk 0:01:51.2]} 15. Qb3 {[%clk 0:02:11.5]}
15... e5 {[%clk 0:01:50]} 16. Nc4 {[%clk 0:02:09.3]} 16... Be6 {[%clk
0:01:50.2]} 17. Bd2 {[%clk 0:02:09.9]} 17... Rac8 {[%clk 0:01:37.7]} 18. Rfc1
{[%clk 0:02:07.3]} 18... Nc6 {[%clk 0:01:27.3]} 19. Bc3 {[%clk 0:01:58.3]} 19...
f6 {[%clk 0:01:13.1]} 20. Qa4 {[%clk 0:01:39.2]} 20... Nd4 {[%clk 0:00:59.8]}
21. Bxd4 {[%clk 0:01:39.6]} 21... Rxd4 {[%clk 0:00:59.7]} 22. Qb3 {[%clk
0:01:30.3]} 22... Rb8 {[%clk 0:00:55.3]} 23. Ra3 {[%clk 0:01:07.4]} 23... Qd7
{[%clk 0:00:37.6]} 24. Nb6 {[%clk 0:00:47.4]} 24... Bxb3 {[%clk 0:00:16.2]} 25.
Nxd7 {[%clk 0:00:48]} 25... Rxd7 {[%clk 0:00:15.6]} 26. Rxb3 {[%clk 0:00:48.8]}
26... Rc7 {[%clk 0:00:11.4]} 27. Rb6 {[%clk 0:00:34.1]} 27... Bd8 {[%clk
0:00:12]} 28. Rd6 {[%clk 0:00:28.8]} 28... Be7 {[%clk 0:00:13.1]} 29. Re6 {[%clk
0:00:27.2]} 29... Kf7 {[%clk 0:00:12.7]} 30. Bd5 {[%clk 0:00:27.6]} 30... Kf8
{[%clk 0:00:14.3]} 31. Be4 {[%clk 0:00:25.2]} 31... g6 {[%clk 0:00:14.5]} 32. b4
{[%clk 0:00:25.3]} 32... Rbc8 {[%clk 0:00:13.1]} 33. bxc5 {[%clk 0:00:23.1]}
33... Rxc5 {[%clk 0:00:12.2]} 34. Rxc5 {[%clk 0:00:23.1]} 34... Rxc5 {[%clk
0:00:14.1]} 35. Rb6 {[%clk 0:00:23.1]} 35... Rxa5 {[%clk 0:00:14.4]} 36. Rxb7
{[%clk 0:00:24.3]} 36... Ra1+ {[%clk 0:00:14.8]} 37. Kg2 {[%clk 0:00:25.1]}
37... a5 {[%clk 0:00:16]} 38. Rb8+ {[%clk 0:00:26]} 38... Kg7 {[%clk 0:00:14.5]}
39. Rb7 {[%clk 0:00:26.8]} 39... Kf8 {[%clk 0:00:15.3]} 40. Rb8+ {[%clk
0:00:27.8]} 40... Kf7 {[%clk 0:00:16.3]} 41. Bd5+ {[%clk 0:00:27.3]} 41... Kg7
{[%clk 0:00:17.7]} 42. Rb7 {[%clk 0:00:27.7]} 42... Kf8 {[%clk 0:00:18.4]} 43.
Rb8+ {[%clk 0:00:21.8]} 43... Kg7 {[%clk 0:00:19.4]} 44. Rg8+ {[%clk 0:00:20.9]}
44... Kh6 {[%clk 0:00:20.3]} 45. Re8 {[%clk 0:00:21]} 45... Bb4 {[%clk
0:00:07.4]} 46. h4 {[%clk 0:00:20.3]} 46... Re1 {[%clk 0:00:07.3]} 47. Kf3
{[%clk 0:00:20.6]} 47... Bc3 {[%clk 0:00:05.7]} 48. Rc8 {[%clk 0:00:20.3]} 48...
Bd4 {[%clk 0:00:06.2]} 49. Rc7 {[%clk 0:00:20.6]} 49... g5 {[%clk 0:00:06]} 50.
Be4 {[%clk 0:00:19]} 50... gxh4 {[%clk 0:00:03]} 51. Rxh7+ {[%clk 0:00:19.2]}
51... Kg5 {[%clk 0:00:03.9]} 52. gxh4# {[%clk 0:00:20.8]} 1-0

[Event "*** Qualifier 2: Titled Tuesday 3|2 Blitz"]
[Site "Chess.com"]
[Date "2017.04.11"]
[Round "7"]
[White "bilelou"]
[Black "Iball95"]
[Result "0-1"]
[WhiteElo "2354"]
[BlackElo "2545"]
[TimeControl "180+2"]
[EndTime "14:41:19 PDT"]
[Termination "Iball95 won by resignation"]

1. e4 {[%clk 0:02:49.2]} 1... c6 {[%clk 0:03:01.1]} 2. d4 {[%clk 0:02:49.7]}
2... d5 {[%clk 0:03:02.5]} 3. e5 {[%clk 0:02:51.4]} 3... Bf5 {[%clk 0:03:03.3]}
4. h4 {[%clk 0:02:52.9]} 4... h5 {[%clk 0:03:02.8]} 5. Bd3 {[%clk 0:02:54.3]}
5... Bxd3 {[%clk 0:03:01.3]} 6. Qxd3 {[%clk 0:02:43.2]} 6... e6 {[%clk
0:03:01.2]} 7. Bg5 {[%clk 0:02:40.5]} 7... Be7 {[%clk 0:02:59.5]} 8. Nf3 {[%clk
0:02:40.5]} 8... Qa5+ {[%clk 0:02:51.2]} 9. Nbd2 {[%clk 0:02:35.1]} 9... Qa6
{[%clk 0:02:52]} 10. c4 {[%clk 0:02:36]} 10... dxc4 {[%clk 0:02:52.7]} 11. Nxc4
{[%clk 0:02:36.4]} 11... Nd7 {[%clk 0:02:53.9]} 12. O-O {[%clk 0:02:34.1]} 12...
Nh6 {[%clk 0:02:25.4]} 13. Bxe7 {[%clk 0:02:19.1]} 13... Kxe7 {[%clk 0:02:27.3]}
14. Qb3 {[%clk 0:02:19.8]} 14... Nf5 {[%clk 0:02:23.7]} 15. Qb4+ {[%clk
0:02:11.1]} 15... Ke8 {[%clk 0:02:21.7]} 16. Ng5 {[%clk 0:02:12.1]} 16... Qb5
{[%clk 0:02:10.5]} 17. Qc3 {[%clk 0:02:04.4]} 17... Qd5 {[%clk 0:02:00.4]} 18.
Rad1 {[%clk 0:01:50.4]} 18... Nf8 {[%clk 0:01:38.4]} 19. Rfe1 {[%clk 0:01:49.4]}
19... Rd8 {[%clk 0:01:33.8]} 20. Ne4 {[%clk 0:01:49]} 20... Ng6 {[%clk
0:01:23.2]} 21. Ncd6+ {[%clk 0:01:46.9]} 21... Nxd6 {[%clk 0:01:24.3]} 22. Nxd6+
{[%clk 0:01:47.2]} 22... Rxd6 {[%clk 0:01:24.7]} 23. exd6 {[%clk 0:01:48.5]}
23... Nxh4 {[%clk 0:01:19.7]} 24. Qg3 {[%clk 0:01:40.6]} 24... Nf5 {[%clk
0:01:19]} 25. Qa3 {[%clk 0:01:37.2]} 25... a6 {[%clk 0:01:04.2]} 26. Qb4 {[%clk
0:01:29.9]} 26... Qb5 {[%clk 0:01:02.2]} 27. Qc3 {[%clk 0:01:25.3]} 27... Qd5
{[%clk 0:00:53.4]} 28. Re5 {[%clk 0:01:22.3]} 28... Qxd6 {[%clk 0:00:54.6]} 29.
Qb3 {[%clk 0:01:20.8]} 29... Nxd4 {[%clk 0:00:38.6]} 30. Qe3 {[%clk 0:01:07]}
30... Nf3+ {[%clk 0:00:32]} 31. Qxf3 {[%clk 0:01:07.3]} 31... Qxe5 {[%clk
0:00:32.9]} 32. Qb3 {[%clk 0:01:06.8]} 32... Qc7 {[%clk 0:00:21.7]} 33. Qc3
{[%clk 0:01:01]} 33... f6 {[%clk 0:00:22.5]} 34. Qd3 {[%clk 0:01:00.4]} 34...
Kf7 {[%clk 0:00:22.2]} 35. Qe2 {[%clk 0:01:00.5]} 35... h4 {[%clk 0:00:22.1]}
36. Re1 {[%clk 0:01:00.3]} 36... Qd6 {[%clk 0:00:21.8]} 37. Rd1 {[%clk
0:00:58.9]} 37... Qc7 {[%clk 0:00:23.1]} 38. Re1 {[%clk 0:01:00.1]} 38... Qd6
{[%clk 0:00:21.9]} 39. Rd1 {[%clk 0:01:00.9]} 39... Qc7 {[%clk 0:00:21.6]} 40.
Re1 {[%clk 0:00:57.6]} 40... e5 {[%clk 0:00:18.7]} 41. Qc4+ {[%clk 0:00:58.1]}
41... Kg6 {[%clk 0:00:20.1]} 42. Qd3+ {[%clk 0:00:57.7]} 42... f5 {[%clk
0:00:20]} 43. f4 {[%clk 0:00:57.6]} 43... e4 {[%clk 0:00:20.6]} 44. Qb3 {[%clk
0:00:54.6]} 44... Qxf4 {[%clk 0:00:19.5]} 45. Qe6+ {[%clk 0:00:55.6]} 45... Kh5
{[%clk 0:00:18.7]} 46. Rf1 {[%clk 0:00:56.9]} 46... Qe3+ {[%clk 0:00:19.4]} 47.
Kh1 {[%clk 0:00:57.7]} 47... g6 {[%clk 0:00:21]} 48. Qe5 {[%clk 0:00:55.6]}
48... Rh6 {[%clk 0:00:19.1]} 49. Rg1 {[%clk 0:00:47.1]} 49... Qg3 {[%clk
0:00:20.1]} 50. Qc5 {[%clk 0:00:40.7]} 50... e3 {[%clk 0:00:20.6]} 51. Qc2
{[%clk 0:00:41.5]} 51... Qf2 {[%clk 0:00:20.9]} 52. Qc3 {[%clk 0:00:39.6]} 52...
Kg5 {[%clk 0:00:20.3]} 53. Qd4 {[%clk 0:00:37.9]} 53... Qf4 {[%clk 0:00:20.9]}
54. Qd8+ {[%clk 0:00:38.8]} 54... Kg4 {[%clk 0:00:21.6]} 55. Re1 {[%clk
0:00:37.5]} 55... h3 {[%clk 0:00:21]} 56. Qd1+ {[%clk 0:00:37.4]} 56... Kg5
{[%clk 0:00:22.3]} 57. g3 {[%clk 0:00:37.4]} 57... Qe4+ {[%clk 0:00:22.7]} 0-1